[Event "Early-Titled-Tuesday-Blitz-March-05-2024"]
[Site "Chess.com"]
[Date "2024.03.05"]
[Round "8"]
[White "MeesvanOsch"]
[Black "noblerone"]
[Result "0-1"]
[WhiteElo "2376"]
[BlackElo "2515"]
[TimeControl "180+1"]
[EndTime "9:30:14 PST"]
[Termination "noblerone won by resignation"]

1. e4 {[%clk 0:02:43]} 1... c5 {[%clk 0:02:03.2]} 2. Nf3 {[%clk 0:02:42.2]} 2...
e6 {[%clk 0:02:02.8]} 3. d4 {[%clk 0:02:36.8]} 3... cxd4 {[%clk 0:02:03.7]} 4.
Nxd4 {[%clk 0:02:37.6]} 4... Qb6 {[%clk 0:02:02.8]} 5. Nb3 {[%clk 0:02:33.9]}
5... Qc7 {[%clk 0:02:02.6]} 6. Be2 {[%clk 0:02:32.8]} 6... Nf6 {[%clk
0:02:00.7]} 7. N1d2 {[%clk 0:02:30.4]} 7... a6 {[%clk 0:01:59.8]} 8. O-O {[%clk
0:02:30.7]} 8... Nc6 {[%clk 0:01:50.2]} 9. c4 {[%clk 0:02:26.8]} 9... b6 {[%clk
0:01:43.7]} 10. f4 {[%clk 0:02:19.8]} 10... d6 {[%clk 0:01:43.8]} 11. Qc2 {[%clk
0:02:02.2]} 11... Bb7 {[%clk 0:01:37.6]} 12. Nf3 {[%clk 0:02:01.4]} 12... Be7
{[%clk 0:01:34]} 13. h3 {[%clk 0:02:00.6]} 13... Rc8 {[%clk 0:01:30.7]} 14. Be3
{[%clk 0:01:59.9]} 14... Nd7 {[%clk 0:01:05.8]} 15. Rad1 {[%clk 0:01:58]} 15...
Bf6 {[%clk 0:01:04.8]} 16. Nbd4 {[%clk 0:01:52.1]} 16... Nxd4 {[%clk 0:00:59.9]}
17. Bxd4 {[%clk 0:01:49.8]} 17... Bxd4+ {[%clk 0:00:52.7]} 18. Nxd4 {[%clk
0:01:50.7]} 18... Qc5 {[%clk 0:00:50.4]} 19. Kh1 {[%clk 0:01:47.3]} 19... O-O
{[%clk 0:00:48.9]} 20. a3 {[%clk 0:01:44.2]} 20... b5 {[%clk 0:00:44.8]} 21. b4
{[%clk 0:01:05.2]} 21... Qc7 {[%clk 0:00:44.3]} 22. Rc1 {[%clk 0:01:00.7]} 22...
bxc4 {[%clk 0:00:39.7]} 23. Qb1 {[%clk 0:00:53.7]} 23... c3 {[%clk 0:00:36.4]}
24. Rf3 {[%clk 0:00:51]} 24... Nf6 {[%clk 0:00:36.4]} 25. Rfxc3 {[%clk
0:00:50.1]} 25... Qxc3 {[%clk 0:00:32.8]} 26. Rxc3 {[%clk 0:00:48.9]} 26... Rxc3
{[%clk 0:00:33.7]} 27. Bf3 {[%clk 0:00:45.2]} 27... Rfc8 {[%clk 0:00:31.9]} 28.
Kh2 {[%clk 0:00:45.4]} 28... h6 {[%clk 0:00:29.4]} 29. Qe1 {[%clk 0:00:41.5]}
29... Rc1 {[%clk 0:00:28.7]} 30. Qg3 {[%clk 0:00:37.6]} 30... Bxe4 {[%clk
0:00:23.3]} 31. f5 {[%clk 0:00:34.9]} 31... Bxf3 {[%clk 0:00:22.1]} 32. Qxf3
{[%clk 0:00:31.3]} 32... e5 {[%clk 0:00:22.5]} 33. Nb3 {[%clk 0:00:26.2]} 33...
R1c3 {[%clk 0:00:22.4]} 34. Qb7 {[%clk 0:00:26.7]} 34... e4 {[%clk 0:00:18]} 35.
Nc5 {[%clk 0:00:22.9]} 35... Re8 {[%clk 0:00:16]} 36. Na4 {[%clk 0:00:17.4]}
36... Rxa3 {[%clk 0:00:15.7]} 37. Qxa6 {[%clk 0:00:17.6]} 37... e3 {[%clk
0:00:14.8]} 38. Qe2 {[%clk 0:00:10.7]} 38... Rxa4 {[%clk 0:00:14.9]} 39. g4
{[%clk 0:00:11.1]} 39... Rxb4 {[%clk 0:00:14.9]} 40. Kg3 {[%clk 0:00:11.6]}
40... Rd4 {[%clk 0:00:14.3]} 41. Kf3 {[%clk 0:00:12]} 41... Rd2 {[%clk
0:00:14.4]} 42. Qxe3 {[%clk 0:00:12.7]} 42... Rxe3+ {[%clk 0:00:14]} 43. Kxe3
{[%clk 0:00:13.6]} 43... Rh2 {[%clk 0:00:14.5]} 0-1

[Event "Early-Titled-Tuesday-Blitz-March-05-2024"]
[Site "Chess.com"]
[Date "2024.03.05"]
[Round "8"]
[White "scarabee43"]
[Black "vladgoncharov"]
[Result "1-0"]
[WhiteElo "2880"]
[BlackElo "2635"]
[TimeControl "180+1"]
[EndTime "9:30:15 PST"]
[Termination "scarabee43 won by checkmate"]

1. Nf3 {[%clk 0:03:00.9]} 1... Nf6 {[%clk 0:02:58.3]} 2. c4 {[%clk 0:03:01.6]}
2... c5 {[%clk 0:02:58.2]} 3. e3 {[%clk 0:03:01.1]} 3... g6 {[%clk 0:02:57.2]}
4. d4 {[%clk 0:03:00.4]} 4... cxd4 {[%clk 0:02:56.4]} 5. exd4 {[%clk 0:03:00.6]}
5... Bg7 {[%clk 0:02:56.5]} 6. Nc3 {[%clk 0:03:00.9]} 6... d5 {[%clk 0:02:56.6]}
7. cxd5 {[%clk 0:02:51]} 7... Nxd5 {[%clk 0:02:55.8]} 8. Bc4 {[%clk 0:02:51.6]}
8... Nxc3 {[%clk 0:02:55.3]} 9. bxc3 {[%clk 0:02:51.4]} 9... O-O {[%clk
0:02:54.1]} 10. O-O {[%clk 0:02:50.7]} 10... Nc6 {[%clk 0:02:53.8]} 11. Re1
{[%clk 0:02:47.6]} 11... e6 {[%clk 0:02:39.9]} 12. Bg5 {[%clk 0:02:33.9]} 12...
Qc7 {[%clk 0:02:36.9]} 13. Bf1 {[%clk 0:02:21]} 13... Na5 {[%clk 0:02:30.6]} 14.
Rc1 {[%clk 0:02:14.6]} 14... b6 {[%clk 0:02:26.8]} 15. c4 {[%clk 0:02:07.6]}
15... h6 {[%clk 0:02:26.2]} 16. Bh4 {[%clk 0:02:06]} 16... Bb7 {[%clk
0:02:13.7]} 17. d5 {[%clk 0:02:01.2]} 17... e5 {[%clk 0:01:46.2]} 18. d6 {[%clk
0:01:56.2]} 18... Qc5 {[%clk 0:01:45.8]} 19. Be7 {[%clk 0:01:50.1]} 19... Rfe8
{[%clk 0:01:38.3]} 20. Nd2 {[%clk 0:01:48.5]} 20... Rxe7 {[%clk 0:01:34.4]} 21.
dxe7 {[%clk 0:01:47.2]} 21... Qxe7 {[%clk 0:01:34.3]} 22. Nb3 {[%clk 0:01:44.1]}
22... Nc6 {[%clk 0:01:31.6]} 23. c5 {[%clk 0:01:43.1]} 23... Re8 {[%clk
0:01:07.9]} 24. Bb5 {[%clk 0:01:18.6]} 24... Rd8 {[%clk 0:01:04]} 25. Qg4 {[%clk
0:01:15.3]} 25... bxc5 {[%clk 0:00:58.7]} 26. Nxc5 {[%clk 0:01:14.1]} 26... Ba8
{[%clk 0:00:58.5]} 27. Ne6 {[%clk 0:01:09.1]} 27... h5 {[%clk 0:00:27.7]} 28.
Qh3 {[%clk 0:01:05.6]} 28... Rd6 {[%clk 0:00:21.1]} 29. Nxg7 {[%clk 0:01:00.6]}
29... Kxg7 {[%clk 0:00:20.9]} 30. Bxc6 {[%clk 0:01:00.8]} 30... Bxc6 {[%clk
0:00:18.5]} 31. Qa3 {[%clk 0:01:00.4]} 31... Ba8 {[%clk 0:00:12.8]} 32. Qc5
{[%clk 0:00:56]} 32... Re6 {[%clk 0:00:09.7]} 33. Qxe7 {[%clk 0:00:55.7]} 33...
Rxe7 {[%clk 0:00:10.6]} 34. Rc5 {[%clk 0:00:53.8]} 34... f6 {[%clk 0:00:10.6]}
35. f3 {[%clk 0:00:54.3]} 35... Kf7 {[%clk 0:00:08.4]} 36. Rec1 {[%clk
0:00:54.5]} 36... Rd7 {[%clk 0:00:07.9]} 37. Rc7 {[%clk 0:00:54.9]} 37... Ke7
{[%clk 0:00:08.8]} 38. Rxd7+ {[%clk 0:00:54.7]} 38... Kxd7 {[%clk 0:00:09.7]}
39. Kf2 {[%clk 0:00:55.1]} 39... Bd5 {[%clk 0:00:09.6]} 40. a3 {[%clk
0:00:54.5]} 40... a6 {[%clk 0:00:09.2]} 41. h4 {[%clk 0:00:54.5]} 41... Bc6
{[%clk 0:00:08.7]} 42. Ke3 {[%clk 0:00:54.7]} 42... Bb5 {[%clk 0:00:08.8]} 43.
Rd1+ {[%clk 0:00:52]} 43... Ke7 {[%clk 0:00:08.5]} 44. Rd5 {[%clk 0:00:50.5]}
44... Ke6 {[%clk 0:00:08.3]} 45. Rd8 {[%clk 0:00:50.1]} 45... Ke7 {[%clk
0:00:07.6]} 46. Rb8 {[%clk 0:00:49.3]} 46... Ke6 {[%clk 0:00:06]} 47. g3 {[%clk
0:00:49.3]} 47... Kf5 {[%clk 0:00:06.3]} 48. Rb6 {[%clk 0:00:46.7]} 48... g5
{[%clk 0:00:05.4]} 49. hxg5 {[%clk 0:00:46.6]} 49... fxg5 {[%clk 0:00:05.7]} 50.
Rh6 {[%clk 0:00:45.9]} 50... Be8 {[%clk 0:00:04.4]} 51. Rxa6 {[%clk 0:00:46.1]}
51... h4 {[%clk 0:00:04]} 52. g4# {[%clk 0:00:46.1]} 1-0

[Event "Early-Titled-Tuesday-Blitz-March-05-2024"]
[Site "Chess.com"]
[Date "2024.03.05"]
[Round "8"]
[White "NowInChess"]
[Black "pfalcon1949"]
[Result "0-1"]
[WhiteElo "2231"]
[BlackElo "1943"]
[TimeControl "180+1"]
[EndTime "9:30:16 PST"]
[Termination "pfalcon1949 won on time"]

1. e4 {[%clk 0:03:00.9]} 1... e6 {[%clk 0:02:59.8]} 2. d3 {[%clk 0:03:00.7]}
2... d5 {[%clk 0:03:00.2]} 3. Nd2 {[%clk 0:03:01.3]} 3... c5 {[%clk 0:03:00.5]}
4. g3 {[%clk 0:03:01]} 4... Nc6 {[%clk 0:03:01.1]} 5. Bg2 {[%clk 0:03:01.5]}
5... Bd6 {[%clk 0:03:00.3]} 6. Ngf3 {[%clk 0:03:00.1]} 6... Nge7 {[%clk
0:03:00.4]} 7. O-O {[%clk 0:03:00.1]} 7... O-O {[%clk 0:03:00.4]} 8. Re1 {[%clk
0:02:58.9]} 8... f6 {[%clk 0:02:59.9]} 9. c3 {[%clk 0:02:53.8]} 9... d4 {[%clk
0:03:00.1]} 10. cxd4 {[%clk 0:02:41.6]} 10... cxd4 {[%clk 0:02:59.6]} 11. Nc4
{[%clk 0:02:41.1]} 11... e5 {[%clk 0:02:59.5]} 12. a4 {[%clk 0:02:34.3]} 12...
Bc7 {[%clk 0:02:58.8]} 13. Bd2 {[%clk 0:02:24]} 13... Be6 {[%clk 0:02:58.7]} 14.
b4 {[%clk 0:02:19.9]} 14... a6 {[%clk 0:02:28.7]} 15. Qc2 {[%clk 0:01:48.4]}
15... b5 {[%clk 0:02:23.1]} 16. Nb2 {[%clk 0:01:42.9]} 16... Bd6 {[%clk
0:02:17.4]} 17. Nh4 {[%clk 0:01:19.5]} 17... Nxb4 {[%clk 0:02:10.5]} 18. Qb1
{[%clk 0:01:17.5]} 18... bxa4 {[%clk 0:02:03.7]} 19. Nxa4 {[%clk 0:01:10.7]}
19... a5 {[%clk 0:02:03.5]} 20. f4 {[%clk 0:01:07.3]} 20... Rb8 {[%clk
0:01:49.4]} 21. Rc1 {[%clk 0:00:46.9]} 21... Qd7 {[%clk 0:01:33.6]} 22. fxe5
{[%clk 0:00:31.7]} 22... fxe5 {[%clk 0:01:30]} 23. Bxb4 {[%clk 0:00:27]} 23...
Rxb4 {[%clk 0:01:20.3]} 24. Qc2 {[%clk 0:00:17.3]} 24... Rc8 {[%clk 0:01:12.3]}
25. Qd1 {[%clk 0:00:13]} 25... Rxc1 {[%clk 0:01:10.7]} 26. Rxc1 {[%clk
0:00:07.5]} 26... Qxa4 {[%clk 0:01:08]} 27. Qh5 {[%clk 0:00:07.1]} 27... Bf7
{[%clk 0:01:00.9]} 28. Qg5 {[%clk 0:00:05.3]} 28... Qe8 {[%clk 0:00:57.2]} 29.
Nf5 {[%clk 0:00:04.4]} 29... Nxf5 {[%clk 0:00:56.4]} 30. exf5 {[%clk 0:00:04.9]}
30... Rb6 {[%clk 0:00:45.4]} 31. f6 {[%clk 0:00:04]} 31... Bf8 {[%clk
0:00:45.3]} 32. fxg7 {[%clk 0:00:02.9]} 32... Bxg7 {[%clk 0:00:44.1]} 33. Bh3
{[%clk 0:00:03.5]} 33... Qb8 {[%clk 0:00:40.1]} 34. Rc8+ {[%clk 0:00:02.5]}
34... Qxc8 {[%clk 0:00:38.9]} 35. Bxc8 {[%clk 0:00:03.4]} 35... Rf6 {[%clk
0:00:35.1]} 36. Qg4 {[%clk 0:00:02.6]} 36... a4 {[%clk 0:00:35]} 37. Qd7 {[%clk
0:00:02.3]} 37... h6 {[%clk 0:00:30.1]} 38. Qxa4 {[%clk 0:00:01.9]} 38... Rf3
{[%clk 0:00:23.5]} 39. Ba6 {[%clk 0:00:01.7]} 39... e4 {[%clk 0:00:22.5]} 40.
Bc4 {[%clk 0:00:02.2]} 40... e3 {[%clk 0:00:20.1]} 41. Bxf7+ {[%clk 0:00:01.7]}
41... Rxf7 {[%clk 0:00:18.7]} 0-1

[Event "Early-Titled-Tuesday-Blitz-March-05-2024"]
[Site "Chess.com"]
[Date "2024.03.05"]
[Round "8"]
[White "Kunalm64"]
[Black "ChessBrainiacOnTwitch"]
[Result "0-1"]
[WhiteElo "2622"]
[BlackElo "2827"]
[TimeControl "180+1"]
[EndTime "9:30:17 PST"]
[Termination "ChessBrainiacOnTwitch won by resignation"]

1. e4 {[%clk 0:02:59.8]} 1... c5 {[%clk 0:02:59.8]} 2. Nf3 {[%clk 0:02:59.7]}
2... d6 {[%clk 0:02:59.9]} 3. Bb5+ {[%clk 0:02:59.7]} 3... Nd7 {[%clk 0:03:00]}
4. d4 {[%clk 0:02:59.4]} 4... cxd4 {[%clk 0:02:59.6]} 5. Qxd4 {[%clk 0:03:00]}
5... Nf6 {[%clk 0:02:59.8]} 6. Bg5 {[%clk 0:02:59.8]} 6... a6 {[%clk 0:02:53]}
7. Bxd7+ {[%clk 0:02:54]} 7... Bxd7 {[%clk 0:02:53.9]} 8. c4 {[%clk 0:02:44.5]}
8... e6 {[%clk 0:02:49.6]} 9. Nc3 {[%clk 0:02:41.5]} 9... Be7 {[%clk 0:02:49.1]}
10. O-O {[%clk 0:02:29.4]} 10... O-O {[%clk 0:02:47.5]} 11. Bxf6 {[%clk
0:02:29.1]} 11... gxf6 {[%clk 0:02:45.5]} 12. Qe3 {[%clk 0:02:11.5]} 12... Kh8
{[%clk 0:02:44.1]} 13. Rad1 {[%clk 0:01:29.3]} 13... Rc8 {[%clk 0:02:41.6]} 14.
b3 {[%clk 0:01:23.8]} 14... Qa5 {[%clk 0:02:41.7]} 15. a4 {[%clk 0:01:19.3]}
15... Rg8 {[%clk 0:02:41.6]} 16. Nd4 {[%clk 0:00:52.7]} 16... Rg6 {[%clk
0:02:33.9]} 17. Nce2 {[%clk 0:00:51.7]} 17... Rcg8 {[%clk 0:02:33]} 18. g3
{[%clk 0:00:45.1]} 18... Qc5 {[%clk 0:02:22.4]} 19. Nc2 {[%clk 0:00:43.8]} 19...
Qg5 {[%clk 0:02:09.3]} 20. Qxg5 {[%clk 0:00:38]} 20... fxg5 {[%clk 0:02:10.2]}
21. e5 {[%clk 0:00:38.3]} 21... d5 {[%clk 0:02:05]} 22. cxd5 {[%clk 0:00:36.8]}
22... exd5 {[%clk 0:02:05.9]} 23. Ne3 {[%clk 0:00:36.5]} 23... Be6 {[%clk
0:02:03.3]} 24. Nxd5 {[%clk 0:00:33]} 24... Bc5 {[%clk 0:02:01.4]} 25. b4 {[%clk
0:00:20]} 25... Ba7 {[%clk 0:01:55.7]} 26. a5 {[%clk 0:00:19.5]} 26... Bg4
{[%clk 0:01:49.1]} 27. Rd2 {[%clk 0:00:15.9]} 27... Rd8 {[%clk 0:01:48]} 28.
Rfd1 {[%clk 0:00:13.7]} 28... Rc6 {[%clk 0:01:15.6]} 29. Kg2 {[%clk 0:00:11.3]}
29... Rxd5 {[%clk 0:00:59.8]} 30. Rxd5 {[%clk 0:00:11.1]} 30... Bxe2 {[%clk
0:01:00.7]} 31. Re1 {[%clk 0:00:09.4]} 31... Bc4 {[%clk 0:00:59.2]} 32. Rd8+
{[%clk 0:00:09.3]} 32... Kg7 {[%clk 0:00:58.5]} 33. Ra8 {[%clk 0:00:09.9]} 33...
Bd4 {[%clk 0:00:57.5]} 34. Rb8 {[%clk 0:00:08.2]} 34... Rc7 {[%clk 0:00:53]} 35.
Rd1 {[%clk 0:00:06.9]} 35... Bxe5 {[%clk 0:00:52.7]} 36. Re8 {[%clk 0:00:06.6]}
36... Bf6 {[%clk 0:00:50]} 37. Rd6 {[%clk 0:00:06.4]} 37... Bb5 {[%clk 0:00:49]}
38. Rb8 {[%clk 0:00:05.7]} 38... Bc6+ {[%clk 0:00:49.3]} 39. Kh3 {[%clk
0:00:05.7]} 39... Be7 {[%clk 0:00:49.5]} 40. Rd4 {[%clk 0:00:05.2]} 40... h5
{[%clk 0:00:49.7]} 41. g4 {[%clk 0:00:05]} 41... hxg4+ {[%clk 0:00:48.9]} 42.
Kxg4 {[%clk 0:00:04.9]} 42... Bd7+ {[%clk 0:00:48.4]} 43. Kg3 {[%clk 0:00:04.4]}
43... f5 {[%clk 0:00:47.1]} 44. f4 {[%clk 0:00:04.3]} 44... g4 {[%clk
0:00:46.3]} 45. h3 {[%clk 0:00:04.1]} 45... Bf6 {[%clk 0:00:44.8]} 46. Rd6
{[%clk 0:00:03.4]} 46... Rc3+ {[%clk 0:00:42.2]} 47. Kf2 {[%clk 0:00:03.5]}
47... g3+ {[%clk 0:00:42.1]} 48. Kg1 {[%clk 0:00:03.2]} 48... Bc6 {[%clk
0:00:42.7]} 49. Rxb7+ {[%clk 0:00:02.9]} 49... Bxb7 {[%clk 0:00:43]} 50. Rd7+
{[%clk 0:00:03.4]} 50... Kg6 {[%clk 0:00:43.8]} 51. Rxb7 {[%clk 0:00:03.9]}
51... Bd4+ {[%clk 0:00:44.6]} 0-1

[Event "Early-Titled-Tuesday-Blitz-March-05-2024"]
[Site "Chess.com"]
[Date "2024.03.05"]
[Round "8"]
[White "goodnigth"]
[Black "LuisFSiles"]
[Result "1-0"]
[WhiteElo "1987"]
[BlackElo "2229"]
[TimeControl "180+1"]
[EndTime "9:30:19 PST"]
[Termination "goodnigth won on time"]

1. d4 {[%clk 0:03:00.9]} 1... Nf6 {[%clk 0:02:59.8]} 2. Nf3 {[%clk 0:02:49.2]}
2... g6 {[%clk 0:02:59.1]} 3. Nc3 {[%clk 0:02:45.7]} 3... d5 {[%clk 0:02:58.4]}
4. Bf4 {[%clk 0:02:41.3]} 4... c6 {[%clk 0:02:56.6]} 5. h3 {[%clk 0:02:41.4]}
5... Bg7 {[%clk 0:02:54.3]} 6. e3 {[%clk 0:02:41.4]} 6... O-O {[%clk 0:02:49.4]}
7. Be2 {[%clk 0:02:41.4]} 7... Re8 {[%clk 0:02:43.9]} 8. O-O {[%clk 0:02:37.4]}
8... Nfd7 {[%clk 0:02:44]} 9. e4 {[%clk 0:02:34]} 9... dxe4 {[%clk 0:02:38.8]}
10. Nxe4 {[%clk 0:02:34.9]} 10... Qa5 {[%clk 0:02:34.8]} 11. Bd3 {[%clk
0:02:01.8]} 11... e5 {[%clk 0:02:29.6]} 12. Nd6 {[%clk 0:01:50.4]} 12... Rd8
{[%clk 0:01:56.4]} 13. Nc4 {[%clk 0:01:45]} 13... Qb5 {[%clk 0:01:19]} 14. a4
{[%clk 0:01:16.9]} 14... Qd5 {[%clk 0:01:09.9]} 15. Ncxe5 {[%clk 0:01:06.4]}
15... Nxe5 {[%clk 0:01:10.1]} 16. Bxe5 {[%clk 0:01:06.4]} 16... Bh6 {[%clk
0:01:05.5]} 17. Re1 {[%clk 0:00:58.9]} 17... Nd7 {[%clk 0:01:04.5]} 18. c4
{[%clk 0:00:58.6]} 18... Qa5 {[%clk 0:01:03.2]} 19. Bd6 {[%clk 0:00:50.2]} 19...
Nf8 {[%clk 0:00:35]} 20. b4 {[%clk 0:00:44.6]} 20... Qh5 {[%clk 0:00:34.6]} 21.
Be7 {[%clk 0:00:40.5]} 21... Re8 {[%clk 0:00:28.1]} 22. Re5 {[%clk 0:00:38.3]}
22... f5 {[%clk 0:00:26.7]} 23. Qe2 {[%clk 0:00:33.2]} 23... Bd7 {[%clk
0:00:17]} 24. Re1 {[%clk 0:00:32.4]} 24... Bf4 {[%clk 0:00:14.1]} 25. Bxf8
{[%clk 0:00:20.6]} 25... Bxe5 {[%clk 0:00:12.7]} 26. Nxe5 {[%clk 0:00:19.6]}
26... Kxf8 {[%clk 0:00:11.6]} 27. Nxd7+ {[%clk 0:00:18.2]} 27... Kf7 {[%clk
0:00:10.9]} 28. Ne5+ {[%clk 0:00:14.2]} 28... Kg7 {[%clk 0:00:07.4]} 29. Qxh5
{[%clk 0:00:13.8]} 29... gxh5 {[%clk 0:00:08.3]} 30. Bxf5 {[%clk 0:00:13.7]}
30... Rad8 {[%clk 0:00:08.1]} 31. Re4 {[%clk 0:00:12.3]} 31... b6 {[%clk
0:00:07.9]} 32. g4 {[%clk 0:00:11.7]} 32... c5 {[%clk 0:00:08]} 33. bxc5 {[%clk
0:00:10]} 33... bxc5 {[%clk 0:00:08.3]} 34. dxc5 {[%clk 0:00:09.7]} 34... Rd1+
{[%clk 0:00:05.5]} 35. Kg2 {[%clk 0:00:09.7]} 35... Rd2 {[%clk 0:00:06.2]} 36.
Nf3 {[%clk 0:00:08.7]} 36... Rxe4 {[%clk 0:00:04.6]} 37. Bxe4 {[%clk 0:00:09.6]}
37... Ra2 {[%clk 0:00:04.5]} 38. c6 {[%clk 0:00:09.3]} 1-0

[Event "Early-Titled-Tuesday-Blitz-March-05-2024"]
[Site "Chess.com"]
[Date "2024.03.05"]
[Round "8"]
[White "Roman_Ovetchkin"]
[Black "carlocapau"]
[Result "1/2-1/2"]
[WhiteElo "2590"]
[BlackElo "2461"]
[TimeControl "180+1"]
[EndTime "9:30:20 PST"]
[Termination "Game drawn by repetition"]

1. d4 {[%clk 0:03:00.9]} 1... Nf6 {[%clk 0:02:59.4]} 2. c4 {[%clk 0:02:59.8]}
2... g6 {[%clk 0:02:59.2]} 3. Nc3 {[%clk 0:02:58.9]} 3... Bg7 {[%clk 0:02:59.3]}
4. e4 {[%clk 0:02:58.5]} 4... d6 {[%clk 0:02:59.6]} 5. h3 {[%clk 0:02:54.4]}
5... O-O {[%clk 0:02:58.9]} 6. Bg5 {[%clk 0:02:53.4]} 6... c5 {[%clk 0:02:57.5]}
7. d5 {[%clk 0:02:53]} 7... e6 {[%clk 0:02:57.2]} 8. Bd3 {[%clk 0:02:50.7]} 8...
exd5 {[%clk 0:02:56.8]} 9. exd5 {[%clk 0:02:50.8]} 9... Re8+ {[%clk 0:02:52.6]}
10. Nge2 {[%clk 0:02:51.3]} 10... Nbd7 {[%clk 0:02:52]} 11. f4 {[%clk
0:02:39.6]} 11... Qb6 {[%clk 0:02:50.6]} 12. Qc2 {[%clk 0:02:33.8]} 12... Nh5
{[%clk 0:02:39.6]} 13. O-O {[%clk 0:02:14.9]} 13... f5 {[%clk 0:02:39.2]} 14.
Rae1 {[%clk 0:02:11.8]} 14... Ndf6 {[%clk 0:02:36.1]} 15. Kh2 {[%clk 0:02:04.6]}
15... Bd7 {[%clk 0:02:35.1]} 16. Ng1 {[%clk 0:01:55.4]} 16... Rxe1 {[%clk
0:02:10.8]} 17. Rxe1 {[%clk 0:01:53.9]} 17... h6 {[%clk 0:02:10.8]} 18. Bxf6
{[%clk 0:01:48.4]} 18... Nxf6 {[%clk 0:02:10.6]} 19. Nf3 {[%clk 0:01:39]} 19...
Re8 {[%clk 0:02:07.3]} 20. Rxe8+ {[%clk 0:01:35.8]} 20... Bxe8 {[%clk
0:02:08.2]} 21. b3 {[%clk 0:01:33.4]} 21... Qb4 {[%clk 0:02:05.9]} 22. Ne2
{[%clk 0:01:32.9]} 22... Bd7 {[%clk 0:02:01.4]} 23. g3 {[%clk 0:01:26.8]} 23...
a6 {[%clk 0:02:01]} 24. a4 {[%clk 0:01:24.6]} 24... b5 {[%clk 0:01:54.2]} 25.
axb5 {[%clk 0:01:23.8]} 25... axb5 {[%clk 0:01:54.6]} 26. Kg2 {[%clk 0:01:23.9]}
26... Kh7 {[%clk 0:01:39.6]} 27. Nh4 {[%clk 0:01:19.2]} 27... bxc4 {[%clk
0:01:36.7]} 28. bxc4 {[%clk 0:01:15.4]} 28... Qe1 {[%clk 0:01:33]} 29. Nf3
{[%clk 0:01:07.7]} 29... Qa1 {[%clk 0:01:29.8]} 30. Qb1 {[%clk 0:01:04.5]} 30...
Qa3 {[%clk 0:01:24.5]} 31. Nh4 {[%clk 0:00:55.6]} 31... Qb4 {[%clk 0:01:12.2]}
32. Qc2 {[%clk 0:00:40.5]} 32... Ba4 {[%clk 0:01:04.8]} 33. Qc1 {[%clk
0:00:33.9]} 33... Ne4 {[%clk 0:01:00]} 34. g4 {[%clk 0:00:33]} 34... Bd7 {[%clk
0:00:36.6]} 35. gxf5 {[%clk 0:00:31.6]} 35... gxf5 {[%clk 0:00:36.7]} 36. Ng3
{[%clk 0:00:28.6]} 36... Nxg3 {[%clk 0:00:34.4]} 37. Kxg3 {[%clk 0:00:28.2]}
37... Bf6 {[%clk 0:00:27]} 38. Nxf5 {[%clk 0:00:26.8]} 38... Bxf5 {[%clk
0:00:27]} 39. Bxf5+ {[%clk 0:00:27.2]} 39... Kg7 {[%clk 0:00:27.7]} 40. Bd3
{[%clk 0:00:23.9]} 40... Qc3 {[%clk 0:00:26.5]} 41. Qxc3 {[%clk 0:00:23.3]}
41... Bxc3 {[%clk 0:00:26]} 42. Kg4 {[%clk 0:00:23.8]} 42... Kf6 {[%clk
0:00:25.1]} 43. Kh5 {[%clk 0:00:23.9]} 43... Kg7 {[%clk 0:00:25.4]} 44. Kg4
{[%clk 0:00:23.6]} 44... Kf6 {[%clk 0:00:25.3]} 45. Kf3 {[%clk 0:00:23.5]} 45...
Bd4 {[%clk 0:00:25]} 46. h4 {[%clk 0:00:22.9]} 46... Bc3 {[%clk 0:00:25.2]} 47.
h5 {[%clk 0:00:23.1]} 47... Bd2 {[%clk 0:00:25.3]} 48. Bg6 {[%clk 0:00:23.4]}
48... Bc1 {[%clk 0:00:25.4]} 49. Ke4 {[%clk 0:00:23.9]} 49... Bd2 {[%clk
0:00:25.7]} 50. f5 {[%clk 0:00:24.4]} 50... Bg5 {[%clk 0:00:26.1]} 51. Kd3
{[%clk 0:00:25]} 51... Bf4 {[%clk 0:00:26.6]} 52. Kc2 {[%clk 0:00:25.4]} 52...
Bg5 {[%clk 0:00:27.1]} 53. Kb3 {[%clk 0:00:26]} 53... Bf4 {[%clk 0:00:27.7]} 54.
Ka4 {[%clk 0:00:26.3]} 54... Be5 {[%clk 0:00:28.2]} 55. Kb5 {[%clk 0:00:26.9]}
55... Bf4 {[%clk 0:00:28.7]} 56. Kc6 {[%clk 0:00:27.3]} 56... Be5 {[%clk
0:00:29.3]} 57. Kd7 {[%clk 0:00:27.8]} 57... Bf4 {[%clk 0:00:29.5]} 58. Kc6
{[%clk 0:00:28.1]} 58... Be5 {[%clk 0:00:29.8]} 59. Kb5 {[%clk 0:00:28.7]} 59...
Bf4 {[%clk 0:00:30.2]} 60. Kc6 {[%clk 0:00:29.6]} 1/2-1/2